[Event "*** Titled Tuesday Blitz"]
[Site "Chess.com"]
[Date "2020.03.03"]
[Round "6"]
[White "MITerryble"]
[Black "Imre91"]
[Result "1/2-1/2"]
[WhiteElo "2913"]
[BlackElo "2750"]
[TimeControl "180+1"]
[EndTime "14:02:42 PST"]
[Termination "Game drawn by repetition"]

1. d4 {[%clk 0:03:00.9]} 1... d5 {[%clk 0:02:59.3]} 2. Nf3 {[%clk 0:03:00.9]}
2... Nf6 {[%clk 0:02:57.6]} 3. c4 {[%clk 0:03:01.3]} 3... c6 {[%clk 0:02:57.7]}
4. Nc3 {[%clk 0:03:01.6]} 4... a6 {[%clk 0:02:57.9]} 5. c5 {[%clk 0:02:59.1]}
5... Bf5 {[%clk 0:02:52.9]} 6. Nh4 {[%clk 0:02:57.1]} 6... Be4 {[%clk
0:02:42.4]} 7. f3 {[%clk 0:02:55.7]} 7... Bg6 {[%clk 0:02:42.4]} 8. Qb3 {[%clk
0:02:53.9]} 8... Ra7 {[%clk 0:02:41.9]} 9. Bf4 {[%clk 0:02:42.1]} 9... Nbd7
{[%clk 0:02:41.6]} 10. g4 {[%clk 0:02:41.7]} 10... e5 {[%clk 0:02:37.4]} 11.
dxe5 {[%clk 0:02:41.7]} 11... Nxc5 {[%clk 0:02:37.4]} 12. Qd1 {[%clk 0:02:38.5]}
12... Nfd7 {[%clk 0:02:34.2]} 13. Nxg6 {[%clk 0:02:37.7]} 13... hxg6 {[%clk
0:02:35.1]} 14. Bg3 {[%clk 0:02:37.8]} 14... g5 {[%clk 0:02:34]} 15. Qd4 {[%clk
0:02:22.5]} 15... Ra8 {[%clk 0:02:32.2]} 16. e3 {[%clk 0:02:22.6]} 16... Ne6
{[%clk 0:02:26.6]} 17. Qd2 {[%clk 0:02:21.9]} 17... Bc5 {[%clk 0:02:21]} 18. a3
{[%clk 0:02:12.7]} 18... a5 {[%clk 0:02:18.7]} 19. f4 {[%clk 0:02:08.9]} 19...
d4 {[%clk 0:02:13.3]} 20. exd4 {[%clk 0:01:59.9]} 20... Nxd4 {[%clk 0:02:13.5]}
21. Qd3 {[%clk 0:01:44.9]} 21... gxf4 {[%clk 0:02:10.2]} 22. Bxf4 {[%clk
0:01:45.8]} 22... Ne6 {[%clk 0:02:09.2]} 23. Bg3 {[%clk 0:01:42.4]} 23... Bd4
{[%clk 0:02:00]} 24. O-O-O {[%clk 0:01:40.6]} 24... Bxe5 {[%clk 0:01:45.4]} 25.
Qxd7+ {[%clk 0:01:24.6]} 25... Qxd7 {[%clk 0:01:43.8]} 26. Rxd7 {[%clk
0:01:25.3]} 26... Bxg3 {[%clk 0:01:43]} 27. Rxb7 {[%clk 0:01:25.6]} 27... Rxh2
{[%clk 0:01:40.1]} 28. Rxh2 {[%clk 0:01:25.9]} 28... Bxh2 {[%clk 0:01:41]} 29.
Bg2 {[%clk 0:01:26.3]} 29... Nd4 {[%clk 0:01:31.5]} 30. Na4 {[%clk 0:01:17.4]}
30... Kf8 {[%clk 0:01:20.1]} 31. Rd7 {[%clk 0:01:08]} 31... Be5 {[%clk
0:01:19.4]} 32. Nb6 {[%clk 0:01:05.1]} 32... Re8 {[%clk 0:01:18]} 33. Nc4 {[%clk
0:01:04.2]} 33... Bf4+ {[%clk 0:01:16.2]} 34. Kd1 {[%clk 0:00:54.8]} 34... c5
{[%clk 0:01:12.3]} 35. Bd5 {[%clk 0:00:53.6]} 35... Re7 {[%clk 0:01:11.2]} 36.
Rd8+ {[%clk 0:00:50.3]} 36... Re8 {[%clk 0:01:11.3]} 37. Rd7 {[%clk 0:00:50.6]}
37... Re7 {[%clk 0:01:09.7]} 38. Rd8+ {[%clk 0:00:50]} 38... Re8 {[%clk
0:01:09.9]} 39. Rxe8+ {[%clk 0:00:50.5]} 39... Kxe8 {[%clk 0:01:10.2]} 40. Nxa5
{[%clk 0:00:51.4]} 40... f5 {[%clk 0:01:09]} 41. Nc6 {[%clk 0:00:37.9]} 41...
fxg4 {[%clk 0:01:04.2]} 42. Nxd4 {[%clk 0:00:37.6]} 42... cxd4 {[%clk
0:01:05.1]} 43. Kc2 {[%clk 0:00:35.1]} 43... Kd7 {[%clk 0:01:02.7]} 44. b4
{[%clk 0:00:27.5]} 44... Kd6 {[%clk 0:01:02.2]} 45. Bg2 {[%clk 0:00:25.9]} 45...
Ke5 {[%clk 0:00:51.5]} 46. a4 {[%clk 0:00:25.7]} 46... Bg5 {[%clk 0:00:47.7]}
47. a5 {[%clk 0:00:20.5]} 47... Bd8 {[%clk 0:00:47.3]} 48. Kd3 {[%clk
0:00:19.5]} 48... g3 {[%clk 0:00:43.8]} 49. Bb7 {[%clk 0:00:14.9]} 49... g5
{[%clk 0:00:43.4]} 50. Ba8 {[%clk 0:00:14.6]} 50... g4 {[%clk 0:00:43.7]} 51.
Bb7 {[%clk 0:00:14.7]} 51... Bc7 {[%clk 0:00:44.2]} 52. Bg2 {[%clk 0:00:14.4]}
52... Bd8 {[%clk 0:00:42.6]} 53. Kc4 {[%clk 0:00:14.6]} 53... Bc7 {[%clk
0:00:41.5]} 54. Kd3 {[%clk 0:00:13.6]} 54... Bd8 {[%clk 0:00:41.6]} 55. Bb7
{[%clk 0:00:13.4]} 55... Bc7 {[%clk 0:00:40.1]} 56. Bh1 {[%clk 0:00:13.8]} 56...
Bd8 {[%clk 0:00:40.5]} 57. Bg2 {[%clk 0:00:14]} 57... Bc7 {[%clk 0:00:40.9]} 58.
a6 {[%clk 0:00:11.9]} 58... Bb6 {[%clk 0:00:41.2]} 59. Kc4 {[%clk 0:00:12.3]}
59... Kf4 {[%clk 0:00:40.7]} 60. Kd3 {[%clk 0:00:12.2]} 60... Ba7 {[%clk
0:00:41]} 61. Ke2 {[%clk 0:00:09.1]} 61... Bb6 {[%clk 0:00:41.4]} 62. Kd3 {[%clk
0:00:09.4]} 62... Ba7 {[%clk 0:00:41.9]} 63. Ke2 {[%clk 0:00:09.9]} 63... Bb6
{[%clk 0:00:42.5]} 64. Kd3 {[%clk 0:00:10.5]} 1/2-1/2

[Event "*** Titled Tuesday Blitz"]
[Site "Chess.com"]
[Date "2020.03.03"]
[Round "6"]
[White "SanchezKelvin"]
[Black "Enriquack"]
[Result "0-1"]
[WhiteElo "2328"]
[BlackElo "2273"]
[TimeControl "180+1"]
[EndTime "14:02:42 PST"]
[Termination "Enriquack won by resignation"]

1. Nf3 {[%clk 0:03:00.7]} 1... Nf6 {[%clk 0:02:59.7]} 2. g3 {[%clk 0:02:57.2]}
2... d5 {[%clk 0:02:53.7]} 3. Bg2 {[%clk 0:02:56.3]} 3... Nc6 {[%clk 0:02:51.1]}
4. O-O {[%clk 0:02:56.3]} 4... e5 {[%clk 0:02:50.6]} 5. d3 {[%clk 0:02:56.1]}
5... h6 {[%clk 0:02:48.4]} 6. c4 {[%clk 0:02:56.2]} 6... dxc4 {[%clk 0:02:28.6]}
7. Qa4 {[%clk 0:02:53.6]} 7... Bd6 {[%clk 0:01:39.5]} 8. Qxc4 {[%clk 0:02:51]}
8... O-O {[%clk 0:01:39.1]} 9. Nc3 {[%clk 0:02:48.8]} 9... Be6 {[%clk
0:01:35.3]} 10. Qa4 {[%clk 0:02:44.6]} 10... Rb8 {[%clk 0:01:30.4]} 11. Nd2
{[%clk 0:02:34.2]} 11... Nd4 {[%clk 0:01:25.8]} 12. Qd1 {[%clk 0:02:29.5]} 12...
Bg4 {[%clk 0:01:22.8]} 13. h3 {[%clk 0:02:27.2]} 13... Bh5 {[%clk 0:01:22.7]}
14. g4 {[%clk 0:02:24.1]} 14... Bg6 {[%clk 0:01:21.8]} 15. Nde4 {[%clk
0:02:22.8]} 15... Be7 {[%clk 0:01:20.2]} 16. e3 {[%clk 0:02:15.7]} 16... Ne6
{[%clk 0:00:54.3]} 17. Qe2 {[%clk 0:02:04.3]} 17... b5 {[%clk 0:00:47.9]} 18.
Rd1 {[%clk 0:01:59.6]} 18... b4 {[%clk 0:00:40.1]} 19. Nxf6+ {[%clk 0:01:59.2]}
19... Bxf6 {[%clk 0:00:41]} 20. Nd5 {[%clk 0:01:58.9]} 20... Bh4 {[%clk
0:00:34.8]} 21. a3 {[%clk 0:01:30.7]} 21... a5 {[%clk 0:00:34.2]} 22. axb4
{[%clk 0:01:30.1]} 22... axb4 {[%clk 0:00:35.1]} 23. Bd2 {[%clk 0:01:11.3]}
23... Qd6 {[%clk 0:00:31.1]} 24. Ra4 {[%clk 0:01:04.5]} 24... c6 {[%clk
0:00:20.8]} 25. Nxb4 {[%clk 0:01:03.5]} 25... Nc5 {[%clk 0:00:21]} 26. Ra5
{[%clk 0:00:56.1]} 26... Nxd3 {[%clk 0:00:20.5]} 27. Nxd3 {[%clk 0:00:52.8]}
27... Bxd3 {[%clk 0:00:20.7]} 28. Qf3 {[%clk 0:00:48.2]} 28... Rxb2 {[%clk
0:00:20]} 29. Qxc6 {[%clk 0:00:46.7]} 29... Qxc6 {[%clk 0:00:19.3]} 30. Bxc6
{[%clk 0:00:45.8]} 30... Be2 {[%clk 0:00:19.5]} 31. Bc3 {[%clk 0:00:45.9]} 31...
Rc2 {[%clk 0:00:19.7]} 32. Rd2 {[%clk 0:00:17.5]} 32... Rxc3 {[%clk 0:00:16.5]}
33. Bd5 {[%clk 0:00:17.8]} 33... Rc1+ {[%clk 0:00:15.9]} 34. Kg2 {[%clk
0:00:17.5]} 34... Bc4 {[%clk 0:00:16.2]} 35. Rc5 {[%clk 0:00:16.6]} 35... Bxd5+
{[%clk 0:00:16.5]} 36. Rcxd5 {[%clk 0:00:16.6]} 36... Bf6 {[%clk 0:00:16.3]} 37.
Kf3 {[%clk 0:00:16.2]} 37... Rc7 {[%clk 0:00:16.3]} 38. Ke4 {[%clk 0:00:16.3]}
38... Re7 {[%clk 0:00:16.1]} 39. Kf5 {[%clk 0:00:14.9]} 39... Re6 {[%clk
0:00:15.2]} 40. Rd6 {[%clk 0:00:14.5]} 40... Rfe8 {[%clk 0:00:15]} 41. Rxe6
{[%clk 0:00:14.4]} 41... Rxe6 {[%clk 0:00:14.3]} 42. Ke4 {[%clk 0:00:15.3]}
42... g6 {[%clk 0:00:14.1]} 43. Rd7 {[%clk 0:00:13.8]} 43... Kg7 {[%clk
0:00:14.2]} 44. Rb7 {[%clk 0:00:13.4]} 44... Ra6 {[%clk 0:00:14]} 45. f4 {[%clk
0:00:11.9]} 45... Ra4+ {[%clk 0:00:13.9]} 46. Kf3 {[%clk 0:00:12.8]} 46... exf4
{[%clk 0:00:13.9]} 47. exf4 {[%clk 0:00:13]} 47... Ra3+ {[%clk 0:00:14.3]} 48.
Ke4 {[%clk 0:00:13.1]} 48... Rxh3 {[%clk 0:00:13.3]} 0-1

[Event "*** Titled Tuesday Blitz"]
[Site "Chess.com"]
[Date "2020.03.03"]
[Round "6"]
[White "Sordis"]
[Black "valeriocarnicelli"]
[Result "1/2-1/2"]
[WhiteElo "2354"]
[BlackElo "2517"]
[TimeControl "180+1"]
[EndTime "14:02:47 PST"]
[Termination "Game drawn by repetition"]

1. c4 {[%clk 0:03:00.9]} 1... Nf6 {[%clk 0:02:59.3]} 2. g3 {[%clk 0:03:00.2]}
2... g6 {[%clk 0:02:59]} 3. b3 {[%clk 0:03:00.7]} 3... Bg7 {[%clk 0:02:59.4]} 4.
Bb2 {[%clk 0:03:01.3]} 4... O-O {[%clk 0:03:00.1]} 5. Bg2 {[%clk 0:03:01.9]}
5... d6 {[%clk 0:03:00.1]} 6. Nf3 {[%clk 0:03:01.5]} 6... e5 {[%clk 0:03:00.3]}
7. O-O {[%clk 0:03:01.9]} 7... Nc6 {[%clk 0:02:56.1]} 8. d3 {[%clk 0:03:01.7]}
8... Re8 {[%clk 0:02:55.5]} 9. Nc3 {[%clk 0:03:00.9]} 9... Ne7 {[%clk 0:02:51]}
10. d4 {[%clk 0:02:54.7]} 10... c6 {[%clk 0:02:43]} 11. e4 {[%clk 0:02:52.3]}
11... Bg4 {[%clk 0:02:35.1]} 12. h3 {[%clk 0:02:49.2]} 12... Bxf3 {[%clk
0:02:33.7]} 13. Bxf3 {[%clk 0:02:50.1]} 13... exd4 {[%clk 0:02:32.4]} 14. Qxd4
{[%clk 0:02:51]} 14... Nfd5 {[%clk 0:02:18.7]} 15. Qd2 {[%clk 0:02:28.3]} 15...
Nxc3 {[%clk 0:02:17.7]} 16. Bxc3 {[%clk 0:02:29.2]} 16... Bxc3 {[%clk 0:02:18]}
17. Qxc3 {[%clk 0:02:30.1]} 17... Qc7 {[%clk 0:02:12.8]} 18. Rad1 {[%clk
0:02:26.6]} 18... Rad8 {[%clk 0:02:12.1]} 19. Bg2 {[%clk 0:02:21.9]} 19... Qb6
{[%clk 0:01:58]} 20. Kh2 {[%clk 0:02:20.6]} 20... a5 {[%clk 0:01:55]} 21. f4
{[%clk 0:02:15.6]} 21... Qc5 {[%clk 0:01:54.4]} 22. Qf6 {[%clk 0:02:07.9]} 22...
Nc8 {[%clk 0:01:48.7]} 23. Rd2 {[%clk 0:02:03.3]} 23... Nb6 {[%clk 0:01:41.8]}
24. Rfd1 {[%clk 0:02:01.1]} 24... Nc8 {[%clk 0:01:40.6]} 25. h4 {[%clk
0:01:57.8]} 25... a4 {[%clk 0:01:37.9]} 26. e5 {[%clk 0:01:43.6]} 26... axb3
{[%clk 0:01:27.1]} 27. axb3 {[%clk 0:01:41.7]} 27... Rd7 {[%clk 0:01:16.7]} 28.
exd6 {[%clk 0:01:26.7]} 28... Re6 {[%clk 0:00:57.7]} 29. Qa1 {[%clk 0:01:16.9]}
29... Rexd6 {[%clk 0:00:52.9]} 30. Rxd6 {[%clk 0:01:11.2]} 30... Rxd6 {[%clk
0:00:53.1]} 31. Re1 {[%clk 0:01:11.4]} 31... Rd8 {[%clk 0:00:51.4]} 32. Qf6
{[%clk 0:01:02.9]} 32... Qd6 {[%clk 0:00:43.2]} 33. Qg5 {[%clk 0:01:00.1]} 33...
Kg7 {[%clk 0:00:37.5]} 34. h5 {[%clk 0:00:57.9]} 34... h6 {[%clk 0:00:36.1]} 35.
Qg4 {[%clk 0:00:57.4]} 35... Ne7 {[%clk 0:00:32.6]} 36. hxg6 {[%clk 0:00:55.8]}
36... fxg6 {[%clk 0:00:32.5]} 37. Re6 {[%clk 0:00:50.4]} 37... Qd7 {[%clk
0:00:27.3]} 38. Qe2 {[%clk 0:00:47.2]} 38... Nf5 {[%clk 0:00:24.8]} 39. g4
{[%clk 0:00:43]} 39... Qd4 {[%clk 0:00:16.1]} 40. gxf5 {[%clk 0:00:37.1]} 40...
Qxf4+ {[%clk 0:00:16.1]} 41. Kg1 {[%clk 0:00:34.1]} 41... Qc1+ {[%clk
0:00:12.7]} 42. Kf2 {[%clk 0:00:17.7]} 42... Rd2 {[%clk 0:00:10.9]} 43. Re7+
{[%clk 0:00:17]} 43... Kf6 {[%clk 0:00:10.2]} 44. Re6+ {[%clk 0:00:16.7]} 44...
Kxf5 {[%clk 0:00:08.6]} 45. Re5+ {[%clk 0:00:17.1]} 45... Kf6 {[%clk 0:00:06.6]}
46. Re6+ {[%clk 0:00:17.4]} 46... Kg5 {[%clk 0:00:03.5]} 47. Re5+ {[%clk
0:00:17.3]} 47... Kh4 {[%clk 0:00:03.1]} 48. Re4+ {[%clk 0:00:15]} 48... Kg5
{[%clk 0:00:03.3]} 49. Re5+ {[%clk 0:00:15]} 49... Kf6 {[%clk 0:00:03.6]} 50.
Re6+ {[%clk 0:00:15.3]} 50... Kg5 {[%clk 0:00:02.1]} 51. Re5+ {[%clk 0:00:15.5]}
1/2-1/2

[Event "*** Titled Tuesday Blitz"]
[Site "Chess.com"]
[Date "2020.03.03"]
[Round "6"]
[White "Micki-taryan"]
[Black "Supernotar"]
[Result "0-1"]
[WhiteElo "2982"]
[BlackElo "2811"]
[TimeControl "180+1"]
[EndTime "14:02:49 PST"]
[Termination "Supernotar won by resignation"]

1. d4 {[%clk 0:03:00.9]} 1... d5 {[%clk 0:02:57.5]} 2. c4 {[%clk 0:03:00.8]}
2... dxc4 {[%clk 0:02:57.7]} 3. Nf3 {[%clk 0:03:00.2]} 3... Nf6 {[%clk
0:02:57.8]} 4. e3 {[%clk 0:03:00.5]} 4... e6 {[%clk 0:02:58.1]} 5. Bxc4 {[%clk
0:03:01.1]} 5... a6 {[%clk 0:02:58.3]} 6. a4 {[%clk 0:02:59.3]} 6... c5 {[%clk
0:02:58.2]} 7. O-O {[%clk 0:02:59.9]} 7... Nc6 {[%clk 0:02:58]} 8. Qe2 {[%clk
0:03:00.2]} 8... cxd4 {[%clk 0:02:58]} 9. Rd1 {[%clk 0:03:00.8]} 9... Be7 {[%clk
0:02:57.9]} 10. exd4 {[%clk 0:03:00.7]} 10... O-O {[%clk 0:02:57.7]} 11. Nc3
{[%clk 0:03:01.2]} 11... Nb4 {[%clk 0:02:54.9]} 12. Ne5 {[%clk 0:03:01.1]} 12...
Bd7 {[%clk 0:02:46.4]} 13. Qf3 {[%clk 0:03:01.3]} 13... Bc6 {[%clk 0:02:44]} 14.
Qg3 {[%clk 0:03:01.3]} 14... Bd5 {[%clk 0:02:26.9]} 15. Bxd5 {[%clk 0:02:47.5]}
15... Nbxd5 {[%clk 0:02:26.4]} 16. Nxd5 {[%clk 0:02:46.5]} 16... Nxd5 {[%clk
0:02:03.4]} 17. Bh6 {[%clk 0:02:43.9]} 17... Bf6 {[%clk 0:02:01.9]} 18. Rac1
{[%clk 0:02:41.2]} 18... Kh8 {[%clk 0:01:51]} 19. Bd2 {[%clk 0:02:39.4]} 19...
Rc8 {[%clk 0:01:45.6]} 20. Rxc8 {[%clk 0:02:36.5]} 20... Qxc8 {[%clk 0:01:45.4]}
21. Rc1 {[%clk 0:02:37]} 21... Qd8 {[%clk 0:01:33.4]} 22. Qb3 {[%clk 0:02:37.5]}
22... Bxe5 {[%clk 0:01:27.1]} 23. dxe5 {[%clk 0:02:36.7]} 23... Qd7 {[%clk
0:01:27.1]} 24. h4 {[%clk 0:02:23.6]} 24... Rc8 {[%clk 0:01:25.5]} 25. Rxc8+
{[%clk 0:02:23.7]} 25... Qxc8 {[%clk 0:01:25.4]} 26. h5 {[%clk 0:02:24.4]} 26...
h6 {[%clk 0:01:23.9]} 27. g4 {[%clk 0:02:22.4]} 27... Qc7 {[%clk 0:01:18.2]} 28.
a5 {[%clk 0:02:14.8]} 28... Qxe5 {[%clk 0:01:02.2]} 29. Qxb7 {[%clk 0:02:14]}
29... Qe4 {[%clk 0:00:59.8]} 30. Qxa6 {[%clk 0:01:57]} 30... Qxg4+ {[%clk
0:00:58.7]} 31. Kf1 {[%clk 0:01:57.7]} 31... Qd1+ {[%clk 0:00:54]} 32. Be1
{[%clk 0:01:58.1]} 32... Qf3 {[%clk 0:00:47.9]} 33. Qc8+ {[%clk 0:01:48.4]}
33... Kh7 {[%clk 0:00:46.8]} 34. Qc2+ {[%clk 0:01:49.3]} 34... f5 {[%clk
0:00:44.9]} 35. Bd2 {[%clk 0:01:45.8]} 35... Nf6 {[%clk 0:00:42.3]} 36. Be3
{[%clk 0:01:18]} 36... Nd5 {[%clk 0:00:36.8]} 37. Bd2 {[%clk 0:01:08.5]} 37...
Nf6 {[%clk 0:00:36.6]} 38. a6 {[%clk 0:01:08.2]} 38... Ng4 {[%clk 0:00:33.7]}
39. Bc1 {[%clk 0:00:49.8]} 39... Qh1+ {[%clk 0:00:22.2]} 40. Ke2 {[%clk
0:00:49.8]} 40... Nxf2 {[%clk 0:00:22.1]} 41. a7 {[%clk 0:00:42.9]} 41... Qxh5+
{[%clk 0:00:15.7]} 42. Ke3 {[%clk 0:00:35.4]} 42... Ng4+ {[%clk 0:00:13.9]} 43.
Kd4 {[%clk 0:00:34.8]} 43... Qh1 {[%clk 0:00:11.6]} 44. Qa4 {[%clk 0:00:27.9]}
44... Qe4+ {[%clk 0:00:10.2]} 45. Kc5 {[%clk 0:00:17.4]} 45... Qxa4 {[%clk
0:00:09.8]} 46. a8=Q {[%clk 0:00:18.3]} 46... Qxa8 {[%clk 0:00:09.1]} 0-1

[Event "*** Titled Tuesday Blitz"]
[Site "Chess.com"]
[Date "2020.03.03"]
[Round "6"]
[White "amiralfio"]
[Black "AvitalBor"]
[Result "1/2-1/2"]
[WhiteElo "2614"]
[BlackElo "2779"]
[TimeControl "180+1"]
[EndTime "14:02:50 PST"]
[Termination "Game drawn by agreement"]

1. d4 {[%clk 0:03:00.9]} 1... Nf6 {[%clk 0:02:58.2]} 2. Bf4 {[%clk 0:03:00.8]}
2... d5 {[%clk 0:02:56.8]} 3. e3 {[%clk 0:03:01.1]} 3... b6 {[%clk 0:02:56.9]}
4. Nf3 {[%clk 0:02:57.1]} 4... Bb7 {[%clk 0:02:57.3]} 5. Bd3 {[%clk 0:02:54.4]}
5... Nbd7 {[%clk 0:02:57.6]} 6. Ne5 {[%clk 0:02:54.4]} 6... Nxe5 {[%clk
0:02:56.1]} 7. Bxe5 {[%clk 0:02:55.3]} 7... Nd7 {[%clk 0:02:51.5]} 8. Bg3 {[%clk
0:02:54.5]} 8... g6 {[%clk 0:02:51.4]} 9. h4 {[%clk 0:02:53.8]} 9... Bg7 {[%clk
0:02:50]} 10. h5 {[%clk 0:02:54.1]} 10... c5 {[%clk 0:02:49.6]} 11. hxg6 {[%clk
0:02:52.9]} 11... hxg6 {[%clk 0:02:50.5]} 12. Rxh8+ {[%clk 0:02:51.8]} 12...
Bxh8 {[%clk 0:02:51.4]} 13. c3 {[%clk 0:02:52]} 13... e5 {[%clk 0:02:46.8]} 14.
dxe5 {[%clk 0:02:48]} 14... Nxe5 {[%clk 0:02:47.7]} 15. Bb5+ {[%clk 0:02:47.2]}
15... Kf8 {[%clk 0:02:47]} 16. Nd2 {[%clk 0:02:04.9]} 16... d4 {[%clk
0:02:42.5]} 17. cxd4 {[%clk 0:01:58]} 17... cxd4 {[%clk 0:02:41]} 18. Bxe5
{[%clk 0:01:50.7]} 18... Bxe5 {[%clk 0:02:41.9]} 19. Nf3 {[%clk 0:01:50.3]}
19... Bxf3 {[%clk 0:02:39.5]} 20. Qxf3 {[%clk 0:01:51.2]} 20... dxe3 {[%clk
0:02:38.6]} 21. Rd1 {[%clk 0:01:51.6]} 21... exf2+ {[%clk 0:02:35.7]} 22. Kxf2
{[%clk 0:01:46.6]} 22... Qh4+ {[%clk 0:02:30.7]} 23. Kf1 {[%clk 0:01:40.9]}
23... Rd8 {[%clk 0:02:24.2]} 24. Rxd8+ {[%clk 0:01:31.6]} 24... Qxd8 {[%clk
0:02:25.1]} 25. Bc4 {[%clk 0:01:30.9]} 25... Qc7 {[%clk 0:02:22.2]} 26. b3
{[%clk 0:01:22.6]} 26... Kg7 {[%clk 0:02:21.3]} 27. Qd5 {[%clk 0:01:21.2]} 27...
Bf6 {[%clk 0:02:11.5]} 28. Ke2 {[%clk 0:01:19.2]} 28... Qe7+ {[%clk 0:02:09.2]}
29. Kd3 {[%clk 0:01:18.4]} 29... Ba1 {[%clk 0:02:04.4]} 30. a4 {[%clk
0:01:15.7]} 30... Qf6 {[%clk 0:02:02.9]} 31. Qf3 {[%clk 0:01:05.1]} 31... Qd4+
{[%clk 0:01:50]} 32. Kc2 {[%clk 0:00:56.1]} 32... Qb2+ {[%clk 0:01:45.5]} 33.
Kd3 {[%clk 0:00:56.2]} 33... Qb1+ {[%clk 0:01:45.3]} 34. Ke2 {[%clk 0:00:53.6]}
34... Qc2+ {[%clk 0:01:41.7]} 35. Kf1 {[%clk 0:00:53.2]} 35... f6 {[%clk
0:01:36.9]} 36. Qb7+ {[%clk 0:00:50.8]} 36... Kh6 {[%clk 0:01:36.1]} 37. Qd5
{[%clk 0:00:31.3]} 37... Qc1+ {[%clk 0:01:32.6]} 38. Ke2 {[%clk 0:00:30.2]}
38... f5 {[%clk 0:01:27.7]} 39. Qd2+ {[%clk 0:00:26.7]} 39... Qxd2+ {[%clk
0:01:27.5]} 40. Kxd2 {[%clk 0:00:27.6]} 40... Kg5 {[%clk 0:01:25.7]} 41. Ke2
{[%clk 0:00:27.4]} 41... Kf4 {[%clk 0:01:24.8]} 42. Kf1 {[%clk 0:00:24.4]} 42...
Bd4 {[%clk 0:01:23.4]} 43. Bf7 {[%clk 0:00:09.5]} 43... g5 {[%clk 0:01:22.3]}
44. Bg8 {[%clk 0:00:09.9]} 44... Kg3 {[%clk 0:01:21.3]} 45. Be6 {[%clk
0:00:08.7]} 45... f4 {[%clk 0:01:20.9]} 46. Bd5 {[%clk 0:00:08.7]} 46... g4
{[%clk 0:01:20.4]} 47. Bc6 {[%clk 0:00:06.6]} 47... Kh2 {[%clk 0:01:19.7]} 48.
Bd7 {[%clk 0:00:05.3]} 48... f3 {[%clk 0:01:18.3]} 49. Bc6 {[%clk 0:00:04.5]}
49... f2 {[%clk 0:01:02.7]} 50. Bd7 {[%clk 0:00:01.9]} 50... Kg3 {[%clk
0:01:02.6]} 51. Bc8 {[%clk 0:00:01.9]} 51... Kf4 {[%clk 0:01:02.8]} 52. Bb7
{[%clk 0:00:02.4]} 52... Ke3 {[%clk 0:01:01.5]} 53. Bc8 {[%clk 0:00:02.5]} 53...
g3 {[%clk 0:01:01.6]} 54. Be6 {[%clk 0:00:02.2]} 54... Ke4 {[%clk 0:01:01.7]}
55. Bc4 {[%clk 0:00:02.3]} 55... Ke5 {[%clk 0:01:02.6]} 56. Bg8 {[%clk
0:00:02.3]} 56... Kd6 {[%clk 0:01:03.5]} 57. Bc4 {[%clk 0:00:02.9]} 57... Ke7
{[%clk 0:01:01.4]} 58. Bb5 {[%clk 0:00:02.8]} 58... Kd6 {[%clk 0:01:00.6]} 59.
Ba6 {[%clk 0:00:03.1]} 59... Kc5 {[%clk 0:01:00.4]} 60. Bc4 {[%clk 0:00:03.6]}
60... Kb4 {[%clk 0:01:00.7]} 61. Bf7 {[%clk 0:00:03.4]} 61... b5 {[%clk
0:00:58.1]} 62. axb5 {[%clk 0:00:04.3]} 62... Kxb5 {[%clk 0:00:58.3]} 63. Bc4+
{[%clk 0:00:04.4]} 63... Kc5 {[%clk 0:00:58]} 64. Bg8 {[%clk 0:00:05.3]} 64...
a5 {[%clk 0:00:58.1]} 65. Bf7 {[%clk 0:00:05.7]} 65... Kb4 {[%clk 0:00:57.8]}
66. Bg8 {[%clk 0:00:06]} 1/2-1/2

[Event "*** Titled Tuesday Blitz"]
[Site "Chess.com"]
[Date "2020.03.03"]
[Round "6"]
[White "northridgehawk"]
[Black "RaphCamora"]
[Result "1/2-1/2"]
[WhiteElo "2266"]
[BlackElo "2432"]
[TimeControl "180+1"]
[EndTime "14:02:50 PST"]
[Termination "Game drawn - insufficient material"]

1. e4 {[%clk 0:03:00.9]} 1... c5 {[%clk 0:02:59.3]} 2. Nf3 {[%clk 0:02:54.5]}
2... Nc6 {[%clk 0:02:59.1]} 3. d4 {[%clk 0:02:54.4]} 3... cxd4 {[%clk
0:02:58.6]} 4. Nxd4 {[%clk 0:02:55.3]} 4... Nf6 {[%clk 0:02:59]} 5. Nc3 {[%clk
0:02:55]} 5... e5 {[%clk 0:02:59.6]} 6. Ndb5 {[%clk 0:02:54.8]} 6... d6 {[%clk
0:03:00.2]} 7. Nd5 {[%clk 0:02:54.9]} 7... Nxd5 {[%clk 0:02:59.6]} 8. exd5
{[%clk 0:02:55.8]} 8... Ne7 {[%clk 0:03:00.2]} 9. c4 {[%clk 0:02:55.1]} 9... Ng6
{[%clk 0:02:51.2]} 10. Be2 {[%clk 0:02:54.3]} 10... a6 {[%clk 0:02:46.6]} 11.
Nc3 {[%clk 0:02:53.6]} 11... Be7 {[%clk 0:02:46.1]} 12. O-O {[%clk 0:02:53.3]}
12... O-O {[%clk 0:02:37]} 13. Be3 {[%clk 0:02:52.6]} 13... f5 {[%clk
0:02:35.8]} 14. f3 {[%clk 0:02:52.5]} 14... Bg5 {[%clk 0:02:17.9]} 15. Bf2
{[%clk 0:02:49.5]} 15... Nf4 {[%clk 0:02:16.7]} 16. b4 {[%clk 0:02:33.9]} 16...
a5 {[%clk 0:02:14.7]} 17. a3 {[%clk 0:02:32.8]} 17... axb4 {[%clk 0:02:09.2]}
18. axb4 {[%clk 0:02:31.5]} 18... Rxa1 {[%clk 0:02:09.8]} 19. Qxa1 {[%clk
0:02:31.6]} 19... e4 {[%clk 0:02:10.5]} 20. fxe4 {[%clk 0:02:23.9]} 20... Bf6
{[%clk 0:02:09.9]} 21. Bf3 {[%clk 0:02:21.3]} 21... fxe4 {[%clk 0:02:07.5]} 22.
Bxe4 {[%clk 0:02:20]} 22... Bxc3 {[%clk 0:02:04.3]} 23. Qb1 {[%clk 0:02:14.5]}
23... Qg5 {[%clk 0:01:48]} 24. Kh1 {[%clk 0:02:08.6]} 24... Ng6 {[%clk
0:01:43.5]} 25. Qd3 {[%clk 0:02:05.6]} 25... Be5 {[%clk 0:01:42]} 26. Bf3 {[%clk
0:01:55.5]} 26... Bf5 {[%clk 0:01:32.8]} 27. Qd1 {[%clk 0:01:50]} 27... Qh6
{[%clk 0:01:31]} 28. Bg1 {[%clk 0:01:49.6]} 28... Nf4 {[%clk 0:01:21.3]} 29. c5
{[%clk 0:01:48.5]} 29... Bd3 {[%clk 0:01:12.9]} 30. Re1 {[%clk 0:01:44]} 30...
Bb5 {[%clk 0:01:10.1]} 31. c6 {[%clk 0:01:40.4]} 31... Nd3 {[%clk 0:01:08.2]}
32. Re2 {[%clk 0:01:33.9]} 32... Nxb4 {[%clk 0:00:57]} 33. Rxe5 {[%clk
0:01:21.4]} 33... dxe5 {[%clk 0:00:54.5]} 34. Qb3 {[%clk 0:01:20.7]} 34... Qd6
{[%clk 0:00:41.7]} 35. cxb7 {[%clk 0:01:18.3]} 35... Rb8 {[%clk 0:00:30.1]} 36.
Qc3 {[%clk 0:01:18.3]} 36... Na6 {[%clk 0:00:19.7]} 37. Qc8+ {[%clk 0:01:16.7]}
37... Qf8 {[%clk 0:00:20.3]} 38. Qe6+ {[%clk 0:01:16.5]} 38... Kh8 {[%clk
0:00:20.1]} 39. d6 {[%clk 0:01:16.6]} 39... Rxb7 {[%clk 0:00:18]} 40. Bxb7
{[%clk 0:01:15.7]} 40... Nc5 {[%clk 0:00:16.4]} 41. Qd5 {[%clk 0:01:13.3]} 41...
Nxb7 {[%clk 0:00:15.3]} 42. Qxb7 {[%clk 0:01:13.4]} 42... Qe8 {[%clk 0:00:15.9]}
43. Qd5 {[%clk 0:01:08.6]} 43... Bc6 {[%clk 0:00:16]} 44. Qc5 {[%clk 0:00:56.5]}
44... Qd7 {[%clk 0:00:15.4]} 45. Qxe5 {[%clk 0:00:54.8]} 45... h6 {[%clk
0:00:15.4]} 46. Bd4 {[%clk 0:00:53]} 46... Qg4 {[%clk 0:00:14.8]} 47. Qg3 {[%clk
0:00:36.2]} 47... Qxg3 {[%clk 0:00:10.6]} 48. hxg3 {[%clk 0:00:36]} 48... Kg8
{[%clk 0:00:11.1]} 49. Kh2 {[%clk 0:00:36.2]} 49... Kf7 {[%clk 0:00:11.1]} 50.
g4 {[%clk 0:00:33.9]} 50... g6 {[%clk 0:00:11.7]} 51. Kg3 {[%clk 0:00:34.1]}
51... Ke6 {[%clk 0:00:11.2]} 52. Bc5 {[%clk 0:00:33.9]} 52... h5 {[%clk
0:00:10.8]} 53. gxh5 {[%clk 0:00:33.8]} 53... gxh5 {[%clk 0:00:11.7]} 54. Bf2
{[%clk 0:00:32.3]} 54... Kxd6 {[%clk 0:00:10.1]} 55. Kh4 {[%clk 0:00:32.2]}
55... Bxg2 {[%clk 0:00:09.9]} 56. Kxh5 {[%clk 0:00:32.8]} 1/2-1/2